bitfinex/quotes_SOLUSD_20250917
["timestamp","ask_amount","ask_price","bid_price","bid_amount"]
[1758108481230,5.12262905,234.63,234.62,0.72]
[1758108481406,5.12262905,234.63,234.62,0.06]
[1758108482606,5.12262905,234.63,234.62,0.72]
[1758108483499,4.83830591,234.63,234.62,0.72]
[1758108484230,3.13083788,234.63,234.62,0.72]
[1758108484725,3.27299945,234.63,234.62,0.06]
[1758108484924,3.27299945,234.63,234.62,0.72]
[1758108486110,3.27299945,234.63,234.62,0.06]
[1758108486617,2.20634869,234.63,234.62,0.06]
[1758108487619,2.20634869,234.63,234.62,0.72]
[1758108488618,3.91381673,234.63,234.62,0.72]
[1758108489221,3.91381673,234.63,234.62,0.06]
[1758108489431,4.61381673,234.63,234.62,0.06]
[1758108489920,3.91381673,234.63,234.62,0.06]
[1758108491106,3.91381673,234.63,234.62,0.72]
[1758108493206,29.91381673,234.63,234.62,0.72]
[1758108493628,3.91381673,234.63,234.62,0.72]
[1758108494516,27.70746804,234.63,234.62,0.06]
[1758108494728,29.91381673,234.63,234.62,0.06]
[1758108495517,63.2959783,234.63,234.62,0.06]
[1758108495722,64.36251968,234.63,234.62,0.06]
[1758108499028,64.39255859,234.63,234.62,0.06]
[1758108499227,63.69255859,234.63,234.62,0.06]
[1758108500343,64.41255859,234.63,234.62,0.06]
[1758108501144,63.69255859,234.63,234.62,0.06]
[1758108503536,63.69255859,234.63,234.62,0.72]
[1758108504040,63.55039702,234.63,234.62,0.72]
[1758108504247,31.01039702,234.63,234.62,0.72]
[1758108505523,31.01037265,234.63,234.62,0.72]
[1758108505929,5.01037265,234.63,234.62,0.72]
[1758108506441,1.09655592,234.63,234.62,0.72]
[1758108506657,2.09418712,234.63,234.62,0.72]
[1758108508945,11.13327684,234.63,234.62,0.72]
[1758108509242,2.09418712,234.63,234.62,0.72]
[1758108509451,0.03,234.63,234.62,0.72]
[1758108511129,2.09418712,234.63,234.62,0.72]
[1758108511331,11.48233985,234.63,234.62,0.72]
[1758108516453,11.48233985,234.63,234.62,0.06]
[1758108517158,11.48233985,234.63,234.62,0.72]
[1758108518636,9.41815273,234.63,234.62,0.72]
[1758108518835,11.48233985,234.63,234.62,0.72]
[1758108519260,9.41815273,234.63,234.62,0.72]
[1758108519439,11.48233985,234.63,234.62,0.72]
[1758108519958,9.41815273,234.63,234.62,0.72]
[1758108520158,11.48233985,234.63,234.62,0.06]
[1758108521361,11.48233985,234.63,234.62,0.72]
[1758108524658,0.03,234.63,234.62,0.72]
[1758108525383,2.09418712,234.63,234.62,0.72]
[1758108526668,0.03,234.63,234.62,0.72]
[1758108530551,0.03,234.63,234.62,0.06]
[1758108530865,0.03,234.63,234.62,0.72]
[1758108531774,0.03,234.63,234.62,0.06]
[1758108532674,0.03,234.63,234.62,0.72]
[1758108533571,0.03,234.63,234.62,0.06]
[1758108533755,0.03,234.63,234.62,0.72]
[1758108542969,0.03,234.63,234.62,0.06]
[1758108544363,1.35029661,234.63,234.62,0.06]
[1758108546455,2.01029661,234.63,234.62,0.06]
[1758108547476,0.69,234.63,234.62,0.06]
[1758108547872,0.03,234.63,234.62,0.71]
[1758108548382,2.01029661,234.63,234.62,0.06]
[1758108550369,1.35029661,234.63,234.62,0.06]
[1758108550689,2.01029661,234.63,234.62,0.06]
[1758108551686,0.03,234.63,234.62,0.06]
[1758108552181,0.03,234.63,234.62,0.71]
[1758108554086,1.35029661,234.63,234.62,0.06]
[1758108554682,2.01029661,234.63,234.62,0.06]
[1758108554889,1.35029661,234.63,234.62,0.06]
[1758108560194,0.03,234.63,234.62,0.06]
[1758108560490,1.35029661,234.63,234.62,0.06]
[1758108562688,1.35029661,234.63,234.62,0.78]
[1758108565277,0.03,234.63,234.62,0.78]
[1758108576475,0.03,234.63,234.62,0.06]
[1758108589119,0.03,234.63,234.62,0.78]
[1758108599530,0.03,234.63,234.62,0.06]
[1758108599914,0.03,234.63,234.62,0.74]
[1758108600411,2.76291898,234.63,234.62,0.06]
[1758108603227,3.04724212,234.63,234.62,0.06]
[1758108603453,0.28432314,234.62,234.59,0.06]
[1758108603730,2.06291898,234.61,234.57,0.06]
[1758108603935,3.80067861,234.63,234.6,0.68]
[1758108604121,2.09291898,234.63,234.61,0.68]
[1758108604508,2.06291898,234.62,234.57,0.06]
[1758108604712,2.06291898,234.62,234.58,0.68]
[1758108604937,2.06291898,234.6,234.57,0.06]
[1758108605136,2.06291898,234.58,234.57,0.06]
[1758108605312,2.73291898,234.58,234.57,0.06]
[1758108607230,2.06291898,234.58,234.57,0.06]
[1758108607737,2.06291898,234.59,234.57,0.74]
[1758108609132,0.67,234.61,234.57,0.06]
[1758108609339,2.06291898,234.6,234.57,0.74]
[1758108609542,2.73291898,234.6,234.57,0.06]
[1758108609849,2.06291898,234.58,234.57,0.06]
[1758108610229,2.73291898,234.58,234.57,0.06]
[1758108610543,2.06291898,234.58,234.57,0.06]
[1758108611250,2.06291898,234.59,234.57,0.06]
[1758108611433,2.73291898,234.59,234.57,0.06]
[1758108612542,2.73291898,234.58,234.57,0.06]
[1758108614049,0.67,234.58,234.57,0.06]
[1758108614246,2.73291898,234.58,234.57,0.06]
[1758108615652,2.06291898,234.58,234.57,0.06]
[1758108621938,1.70761382,234.6,234.57,0.77]
[1758108622147,0.03,234.62,234.57,0.77]
[1758108622148,2.06291898,234.61,234.57,0.77]
[1758108622745,2.06291898,234.6,234.57,0.77]
[1758108625459,2.06291898,234.58,234.57,0.06]
[1758108627241,1.8797025,234.62,234.57,0.06]
[1758108627444,2.06291898,234.58,234.57,0.06]
[1758108632067,2.06291898,234.59,234.57,0.06]
[1758108632953,2.09291898,234.62,234.57,0.06]
[1758108634560,0.03,234.62,234.57,0.06]
[1758108635379,2.09291898,234.62,234.57,0.06]
[1758108637052,2.06291898,234.61,234.57,0.06]
[1758108637862,2.06291898,234.6,234.57,0.06]
[1758108639076,0.03,234.62,234.57,0.06]
[1758108639578,0.03,234.62,234.57,32.6]
[1758108644059,0.03,234.62,234.57,0.06]
[1758108644263,2.09291898,234.62,234.57,32.6]
[1758108648102,2.09291898,234.62,234.57,0.06]
[1758108648391,2.09291898,234.62,234.57,32.6]
[1758108648686,2.06291898,234.59,234.57,0.06]
[1758108650594,11.60330838,234.62,234.57,0.06]
[1758108650774,2.06291898,234.59,234.57,0.06]
[1758108652785,2.06291898,234.6,234.57,0.06]
[1758108653593,2.06291898,234.61,234.57,0.06]
[1758108653889,2.06291898,234.6,234.57,0.06]
[1758108655877,2.06291898,234.61,234.57,0.06]
[1758108658074,9.5103894,234.62,234.57,0.06]
[1758108658075,2.06291898,234.6,234.57,0.06]
[1758108658394,2.06291898,234.59,234.57,0.06]
[1758108661800,1.32094485,234.59,234.57,0.06]
[1758108663300,1.32094485,234.58,234.57,0.06]
[1758108684614,1.35094485,234.59,234.57,0.06]
[1758108686515,0.03,234.59,234.57,0.06]
[1758108687318,1.35094485,234.59,234.57,0.06]
[1758108687521,1.32094485,234.58,234.57,0.06]
[1758108699118,3.02863158,234.58,234.57,0.06]
[1758108699323,3.17079315,234.58,234.57,0.06]
[1758108700630,1.32094485,234.58,234.57,0.06]
[1758108700817,2.5299318,234.58,234.57,0.06]
[1758108701434,4.23776435,234.58,234.57,0.06]
[1758108703333,4.23784222,234.58,234.57,0.06]
[1758108705832,30.38000379,234.58,234.57,0.06]
[1758108711547,30.66432693,234.58,234.57,0.06]
[1758108722870,29.34338208,234.58,234.57,0.06]
[1758108723037,30.66432693,234.58,234.57,0.06]
[1758108725766,30.34158839,234.58,234.57,0.06]
[1758108725941,31.40859459,234.58,234.57,0.06]
[1758108726142,30.34158839,234.58,234.57,0.06]
[1758108726650,17.9371824,234.58,234.57,0.06]
[1758108728169,32.49428363,234.58,234.57,0.06]
[1758108728357,18.6271824,234.58,234.57,0.06]
[1758108729573,20.85546415,234.58,234.57,0.06]
[1758108730570,21.92257332,234.58,234.57,0.06]
[1758108732466,19.85746376,234.58,234.57,0.06]
[1758108732675,21.23257332,234.58,234.57,0.06]
[1758108733867,21.92257332,234.58,234.57,0.06]
[1758108734080,21.23257332,234.58,234.57,0.75]
[1758108734253,39.89265617,234.58,234.57,0.75]
[1758108737260,39.89265617,234.58,234.57,0.06]
[1758108737468,54.46257332,234.58,234.57,0.06]
[1758108738174,53.77257332,234.58,234.57,0.06]
[1758108738600,53.77252643,234.58,234.57,0.06]
[1758108741180,40.17693242,234.58,234.57,0.06]
[1758108741380,37.82749972,234.58,234.57,0.75]
[1758108741693,39.89260928,234.58,234.57,0.75]
[1758108743505,39.89260928,234.58,234.57,0.06]
[1758108745584,40.86693242,234.58,234.57,0.06]
[1758108745795,40.17693242,234.58,234.57,0.06]
[1758108747187,54.46252643,234.58,234.57,0.06]
[1758108750213,58.04056433,234.58,234.57,0.06]
[1758108750628,57.35056433,234.58,234.57,0.06]
[1758108750793,51.70741687,234.58,234.57,0.75]
[1758108751123,53.77252643,234.58,234.57,0.75]
[1758108751313,53.77252643,234.58,234.57,0.06]
[1758108751515,37.82749972,234.58,234.57,0.75]
[1758108751831,39.89260928,234.58,234.57,0.75]
[1758108753001,39.89260928,234.58,234.57,0.06]
[1758108753640,40.58260928,234.58,234.57,0.06]
[1758108753803,58.04056433,234.58,234.57,0.06]
[1758108754006,54.46252643,234.58,234.57,0.06]
[1758108761833,58.04756943,234.58,234.57,0.06]
[1758108770709,57.35756943,234.58,234.57,0.06]
[1758108771033,57.35756943,234.58,234.57,0.72]
[1758108771034,43.47765228,234.58,234.57,0.72]
[1758108771344,39.89260928,234.58,234.57,0.72]
[1758108771515,39.89262449,234.58,234.57,0.72]
[1758108773430,54.48254164,234.58,234.57,0.06]
[1758108774030,58.06831736,234.58,234.57,0.06]
[1758108774725,57.35831736,234.58,234.57,0.06]
[1758108774917,53.77254164,234.58,234.57,0.06]
[1758108775537,53.77254164,234.58,234.57,0.72]
[1758108775726,53.77254164,234.58,234.57,0.06]
[1758108779532,49.64351698,234.58,234.57,0.06]
[1758108779740,49.64351698,234.58,234.57,0.74]
[1758108781141,49.64351698,234.58,234.57,0.06]
[1758108781342,49.64346288,234.58,234.57,0.06]
[1758108785946,63.45987797,234.58,234.57,0.06]
[1758108788440,62.77987797,234.58,234.57,0.06]
[1758108788642,63.45987797,234.58,234.57,0.06]
[1758108788839,62.77987797,234.58,234.57,0.06]
[1758108789656,53.70898548,234.58,234.57,0.06]
[1758108790459,6.60903662,234.58,234.57,0.78]
[1758108791050,5.54204494,234.58,234.57,0.78]
[1758108791840,6.6089674,234.58,234.57,0.78]
[1758108792055,5.54204494,234.58,234.57,0.78]
[1758108792359,6.6089674,234.58,234.57,0.78]
[1758108793536,5.2873599,234.58,234.57,0.78]
[1758108793851,6.6089674,234.58,234.57,0.78]
[1758108796455,4.38068565,234.58,234.57,0.78]
[1758108799659,3.05907815,234.58,234.57,0.78]
[1758108799869,4.38068565,234.58,234.57,0.78]
[1758108802669,2.91691658,234.58,234.57,0.78]
[1758108802961,0.03,234.59,234.57,0.78]
[1758108809866,26.0,234.58,234.57,0.78]
[1758108817957,0.03,234.59,234.57,0.78]
[1758108818159,26.03,234.59,234.57,0.78]
[1758108818563,0.03,234.59,234.57,0.78]
[1758108819774,0.03,234.59,234.57,0.06]
[1758108820083,0.03,234.59,234.57,0.74]
[1758108821461,2.0016075,234.59,234.57,0.06]
[1758108821652,1.3516075,234.59,234.57,0.06]
[1758108822051,1.3516075,234.59,234.57,0.74]
[1758108822457,28.11376907,234.58,234.57,0.06]
[1758108822763,29.82167454,234.58,234.57,0.06]
[1758108824785,29.17167454,234.58,234.57,0.06]
[1758108824959,29.82167454,234.58,234.57,0.06]
[1758108825681,29.17167454,234.58,234.57,0.06]
[1758108830681,27.85006704,234.58,234.57,0.06]
[1758108830884,27.85006704,234.58,234.57,0.74]
[1758108831486,27.85006704,234.58,234.57,0.06]
[1758108832186,29.82167454,234.58,234.57,0.06]
[1758108832790,5.03071459,234.58,234.57,0.06]
[1758108833385,5.03080921,234.58,234.57,0.06]
[1758108839894,4.38080921,234.58,234.57,0.06]
[1758108840096,29.05920171,234.58,234.57,0.75]
[1758108840299,1.85006704,234.58,234.57,0.75]
[1758108840595,34.45006704,234.58,234.57,0.75]
[1758108841294,35.77167454,234.58,234.57,0.75]
[1758108842201,34.45006704,234.58,234.57,0.75]
[1758108842400,1.85006704,234.58,234.57,0.75]
[1758108844582,3.98383611,234.58,234.57,0.06]
[1758108844785,5.05075439,234.58,234.57,0.06]
[1758108844977,3.98383611,234.58,234.57,0.06]
[1758108845606,3.31383611,234.58,234.57,0.06]
[1758108845906,4.05680513,234.58,234.57,0.06]
[1758108846780,1.85006704,234.58,234.57,0.06]
[1758108846983,26.03,234.59,234.57,0.77]
[1758108847480,26.17216157,234.59,234.58,0.71]
[1758108851195,0.17216157,234.59,234.58,0.71]
[1758108851390,26.14216157,234.58,234.57,0.06]
[1758108851591,61.61889966,234.58,234.57,0.06]
[1758108851793,63.32687805,234.58,234.57,0.06]
[1758108852408,62.65687805,234.58,234.57,0.06]
[1758108854802,36.65687805,234.58,234.57,0.06]
[1758108855418,35.26230153,234.58,234.57,0.06]
[1758108855711,37.32687805,234.58,234.57,0.06]
[1758108856383,52.27366732,234.58,234.57,0.06]
[1758108862204,52.27383226,234.58,234.57,0.06]
[1758108866725,55.85970889,234.58,234.57,0.06]
[1758108867298,52.27391016,234.58,234.57,0.06]
[1758108868440,55.85978679,234.58,234.57,0.06]
[1758108872329,14.16424029,234.57,234.56,0.06]
[1758108872505,14.16424029,234.57,234.54,0.06]
[1758108872506,26.28432314,234.55,234.54,0.06]
[1758108872830,62.01601462,234.55,234.54,0.06]
[1758108873125,64.39464964,234.55,234.54,0.06]
[1758108875104,64.39475175,234.55,234.54,0.06]
[1758108875327,77.34517348,234.55,234.54,0.06]
[1758108878229,80.84651698,234.55,234.54,0.06]
[1758108886136,80.17651698,234.55,234.54,0.06]
[1758108891143,96.12105824,234.55,234.54,0.06]
[1758108891446,14.16424029,234.54,234.52,0.2]
[1758108891609,169.74074084,234.53,234.52,0.2]
[1758108892441,182.55659832,234.53,234.52,0.2]
[1758108895848,50.85659832,234.53,234.52,0.2]
[1758108898424,50.85663845,234.53,234.52,0.2]
[1758108901445,55.16251508,234.53,234.52,0.2]
[1758108901640,54.44251508,234.53,234.52,0.2]
[1758108907956,56.92639404,234.53,234.52,0.2]
[1758108911350,53.34051741,234.53,234.52,0.2]
[1758108912666,52.27321262,234.53,234.52,0.2]
[1758108912838,53.34054853,234.53,234.52,0.2]
[1758108914757,53.34054853,234.53,234.52,0.9]
[1758108914758,48.05012293,234.53,234.52,0.9]
[1758108914931,51.64267695,234.53,234.52,0.9]
[1758108915337,15.49012293,234.53,234.52,0.9]
[1758108915556,48.05012293,234.53,234.52,0.9]
[1758108916433,51.64267695,234.53,234.52,0.9]
[1758108916633,71.5230197,234.53,234.52,0.2]
[1758108916850,70.8130197,234.53,234.52,0.2]
[1758108917769,70.8130197,234.53,234.52,0.9]
[1758108917950,65.5225941,234.53,234.52,0.9]
[1758108919367,61.93004008,234.53,234.52,0.9]
[1758108920765,61.93004008,234.53,234.52,0.2]
[1758108921464,0.28432314,234.52,234.51,0.06]
[1758108921766,7.96469105,234.52,234.51,0.06]
[1758108922168,21.49109604,234.52,234.51,0.06]
[1758108924155,35.37101319,234.52,234.51,0.06]
[1758108924970,35.37101319,234.52,234.5,463.1894047]
[1758108925270,34.62165905,234.51,234.5,463.1894047]
[1758108925754,47.43861161,234.51,234.5,463.1894047]
[1758108925955,47.43861161,234.51,234.5,426.3188094]
[1758108926573,61.31852876,234.51,234.5,426.3188094]
[1758108926959,61.31852876,234.51,234.5,389.4482141]
[1758108927983,61.31852876,234.51,234.5,356.17763741]
[1758108928479,61.26864146,234.51,234.5,356.17763741]
[1758108929174,61.26864146,234.51,234.5,322.90706072]
[1758108930178,62.59124786,234.51,234.5,289.63648403]
[1758108931370,194.29124786,234.51,234.5,289.63648403]
[1758108931576,193.63124786,234.51,234.5,289.63648403]
[1758108931762,194.29124786,234.51,234.5,289.63648403]
[1758108934063,193.63124786,234.51,234.5,289.63648403]
[1758108934275,159.74864146,234.51,234.5,289.63648403]
[1758108934578,193.63124786,234.51,234.5,289.63648403]
[1758108937382,61.93124786,234.51,234.5,289.63648403]
[1758108938068,61.93124786,234.51,234.5,290.31648403]
[1758108938461,61.93124786,234.51,234.5,289.63648403]
[1758108939182,61.93124786,234.51,234.5,289.69648403]
[1758108939376,61.96124786,234.51,234.5,289.69648403]
[1758108939557,61.96124786,234.51,234.5,290.37648403]
[1758108940564,61.96124789,234.51,234.5,290.37648403]
[1758108940965,61.96124789,234.51,234.5,289.69648403]
[1758108942263,61.96124789,234.51,234.5,290.37648403]
[1758108944788,29.40124789,234.51,234.5,290.37648403]
[1758108944980,61.96124789,234.51,234.5,290.37648403]
[1758108945181,61.96124789,234.51,234.5,289.69648403]
[1758108945568,61.96124789,234.51,234.5,288.14852094]
[1758108947688,60.63864149,234.51,234.5,288.14852094]
[1758108947876,61.96124789,234.51,234.5,288.14852094]
[1758108950170,61.96124789,234.51,234.5,287.46852094]
[1758108950469,62.65124789,234.51,234.5,287.46852094]
[1758108951288,61.96124789,234.51,234.5,287.46852094]
[1758108951678,62.65124789,234.51,234.5,287.46852094]
[1758108951873,61.96124789,234.51,234.5,288.14852094]
[1758108955185,61.96124789,234.51,234.5,287.46852094]
[1758108956483,60.63864149,234.51,234.5,288.14852094]
[1758108957597,61.96124789,234.51,234.5,288.14852094]
[1758108958801,61.96124789,234.51,234.5,287.46852094]
[1758108959188,62.65124789,234.51,234.5,287.46852094]
[1758108959878,61.96124789,234.51,234.5,287.46852094]
[1758108961106,62.65124789,234.51,234.5,287.46852094]
[1758108965513,61.96124789,234.51,234.5,287.46852094]
[1758108966022,62.65124789,234.51,234.5,287.46852094]
[1758108966229,61.96124789,234.51,234.5,287.46852094]
[1758108966591,62.65124789,234.51,234.5,287.46852094]
[1758108967012,61.96124789,234.51,234.5,287.46852094]
[1758108967905,62.70563557,234.51,234.5,287.46852094]
[1758108968106,63.39563557,234.51,234.5,287.46852094]
[1758108970438,63.39563557,234.51,234.5,241.84030148]
[1758108970916,76.20563557,234.51,234.5,241.69820148]
[1758108971430,76.20563557,234.51,234.5,196.06998202]
[1758108971606,78.43490269,234.51,234.5,196.06998202]
[1758108972530,78.43490269,234.51,234.5,150.44176256]
[1758108973634,78.43490269,234.51,234.5,104.8135431]
[1758108974537,78.43490269,234.51,234.5,59.18532364]
[1758108974739,78.43507235,234.51,234.5,59.18532364]
[1758108974936,45.87507235,234.51,234.5,59.18532364]
[1758108975239,78.43507235,234.51,234.5,59.18532364]
[1758108975439,78.43507235,234.51,234.5,13.55710418]
[1758108975649,78.43507235,234.51,234.5,14.26710418]
[1758108975650,77.74501026,234.51,234.5,14.26710418]
[1758108976022,77.74501026,234.51,234.5,13.55710418]
[1758108976536,78.43501026,234.51,234.5,13.55710418]
[1758108982613,78.43503336,234.51,234.5,13.55710418]
[1758108984941,132.24713611,234.49,234.48,0.2]
[1758108985151,58.56365204,234.49,234.48,0.2]
[1758108985734,60.27301722,234.49,234.48,0.2]
[1758108988742,59.20543791,234.49,234.48,0.2]
[1758108988936,60.27305674,234.49,234.48,0.2]
[1758108990834,60.96305674,234.49,234.48,0.2]
[1758108991230,60.27305674,234.49,234.48,0.2]
[1758108992824,25.64606266,234.49,234.48,0.91]
[1758108993047,59.9887336,234.49,234.48,0.91]
[1758108993224,60.13089517,234.49,234.48,0.91]
[1758108993946,60.27305674,234.49,234.48,0.91]
[1758108996956,60.27305674,234.49,234.48,0.2]
[1758108997257,60.27305674,234.49,234.48,0.87]
[1758108998961,60.27297882,234.49,234.48,0.87]
[1758109006164,59.20543791,234.49,234.48,0.87]
[1758109006359,60.27297882,234.49,234.48,0.87]
[1758109007972,60.30297882,234.49,234.48,0.87]
[1758109012530,60.30297882,234.49,234.48,0.2]
[1758109020884,58.23598474,234.49,234.48,0.2]
[1758109021066,60.30297882,234.49,234.48,0.2]
[1758109023786,60.30297882,234.49,234.48,0.87]
[1758109024168,60.30297882,234.49,234.48,0.2]
[1758109026582,25.39166163,234.49,234.48,0.87]
[1758109026787,57.93166163,234.49,234.48,0.87]
[1758109026960,60.28297885,234.49,234.48,0.87]
[1758109027569,58.21598477,234.49,234.48,0.87]
[1758109027791,11.79606762,234.49,234.48,0.87]
[1758109028085,44.33606762,234.49,234.48,0.87]
[1758109035289,44.3358252,234.49,234.48,0.87]
[1758109036097,43.26852668,234.49,234.48,0.87]
[1758109036397,44.3358252,234.49,234.48,0.87]
[1758109037085,43.26852668,234.49,234.48,0.87]
[1758109040600,42.69136668,234.49,234.48,0.87]
[1758109042601,42.97568982,234.49,234.48,0.87]
[1758109048921,36.15136668,234.49,234.48,0.87]
[1758109049215,68.67136668,234.49,234.48,0.87]
[1758109049388,34.4420015,234.49,234.48,0.87]
[1758109050327,8.4420015,234.49,234.48,0.87]
[1758109077553,8.4420015,234.49,234.48,0.2]
[1758109077741,8.4420015,234.49,234.48,0.9]
[1758109082353,8.4420015,234.49,234.48,0.2]
[1758109105099,0.03,234.49,234.48,0.88]
[1758109105388,0.03,234.49,234.48,2.94532471]
[1758109108968,0.03,234.49,234.48,16.82524186]
[1758109109990,0.03,234.49,234.48,18.53300149]
[1758109111891,0.03,234.49,234.48,18.81732463]
[1758109112892,0.03,234.49,234.48,51.31732463]
[1758109113266,0.03,234.49,234.48,71.31732463]
[1758109123595,0.03,234.51,234.5,59.87991715]
[1758109123800,0.03,234.51,234.5,64.72132894]
[1758109123980,0.03,234.51,234.5,65.38132894]
[1758109124878,0.03,234.51,234.5,67.0887241]
[1758109125694,0.03,234.52,234.5,67.0887241]
[1758109125695,0.03,234.52,234.51,13.87991715]
[1758109125993,0.03,234.52,234.51,51.15056657]
[1758109126380,0.03,234.52,234.51,52.85781598]
[1758109126783,0.03,234.54,234.53,60.16424029]
[1758109126986,0.03,234.54,234.53,95.13594968]
[1758109127299,0.03,234.54,234.53,95.369565]
[1758109127481,0.03,234.54,234.53,95.0114897]
[1758109127803,0.03,234.54,234.53,97.07681441]
[1758109140606,0.7,234.54,234.53,63.93681441]
[1758109140811,0.7,234.54,234.53,96.84319909]
[1758109141110,0.7,234.54,234.53,96.41681441]
[1758109141811,0.03,234.54,234.53,96.41681441]
[1758109143007,0.03,234.54,234.53,76.41681441]
[1758109143209,0.03,234.54,234.53,96.84319909]
[1758109143512,0.03,234.54,234.53,96.41681441]
[1758109151199,0.03,234.54,234.53,97.11681441]
[1758109151809,0.03,234.54,234.53,96.37165755]
[1758109152506,0.03,234.54,234.53,95.67165755]
[1758109153007,0.73,234.54,234.53,15.58716656]
[1758109153210,0.73,234.54,234.53,49.36733441]
[1758109153408,0.73,234.54,234.53,1.70724941]
[1758109153596,0.73,234.54,234.53,35.48741726]
[1758109153793,0.73,234.54,234.53,34.16724941]
[1758109155409,0.73,234.54,234.53,1.70724941]
[1758109155622,0.73,234.54,234.53,32.46]
[1758109158018,0.73,234.54,234.52,0.06]
[1758109158192,0.73,234.54,234.53,32.48]
[1758109158607,0.73,234.54,234.52,0.06]
[1758109158806,0.73,234.54,234.53,32.48]
[1758109163730,0.73,234.54,234.52,0.06]
[1758109164029,0.73,234.54,234.53,32.48]
[1758109165726,0.03,234.54,234.53,32.48]
[1758109168027,0.73,234.54,234.53,32.48]
[1758109174542,2.05016785,234.54,234.52,0.06]
[1758109174830,1.32016785,234.53,234.52,0.06]
[1758109175240,2.00016785,234.53,234.52,0.06]
[1758109176317,4.0003357,234.53,234.52,0.06]
[1758109177315,2.68016785,234.53,234.52,0.06]
[1758109177524,4.0003357,234.53,234.52,0.06]
[1758109186225,2.00016785,234.53,234.52,0.06]
[1758109188939,3.70829212,234.53,234.52,0.06]
[1758109198046,3.73829212,234.53,234.52,0.06]
[1758109199956,2.41812427,234.53,234.52,0.06]
[1758109200136,3.73829212,234.53,234.52,0.06]
[1758109213974,4.48386463,234.53,234.52,0.06]
[1758109215680,1.73812427,234.53,234.52,0.77]
[1758109215859,3.80386463,234.53,234.52,0.77]
[1758109216787,1.73812427,234.53,234.52,0.77]
[1758109216991,0.03,234.53,234.52,0.77]
[1758109217282,2.09574036,234.53,234.52,0.77]
[1758109218575,0.03,234.53,234.52,0.77]
[1758109224288,0.03,234.53,234.52,2.83574036]
[1758109226286,0.03,234.53,234.52,4.54342708]
[1758109227062,0.03,234.53,234.52,18.28118266]
[1758109227264,0.03,234.53,234.52,18.42334423]
[1758109232070,0.03,234.53,234.52,50.88334423]
[1758109233393,0.03,234.53,234.52,49.17565751]
[1758109234676,0.03,234.53,234.52,16.71565751]
[1758109234883,0.03,234.53,234.52,49.17565751]
[1758109235082,0.03,234.53,234.52,16.71565751]
[1758109235264,0.03,234.53,234.52,49.17565751]
[1758109244007,0.03,234.53,234.52,49.60206037]
[1758109245604,0.03,234.53,234.52,48.89206037]
[1758109245804,0.03,234.53,234.52,49.58206037]
[1758109246008,0.03,234.53,234.52,16.69565751]
[1758109246212,0.03,234.53,234.52,49.15565751]
[1758109247509,0.03,234.53,234.52,16.69565751]
[1758109247711,0.03,234.53,234.52,49.15565751]
[1758109248604,0.03,234.53,234.52,16.69565751]
[1758109248906,0.03,234.53,234.52,49.15565751]
[1758109255796,0.03,234.53,234.52,50.86312555]
[1758109269321,0.03,234.53,234.52,50.17312555]
[1758109270218,0.03,234.53,234.52,17.71312555]
[1758109270419,0.03,234.53,234.52,50.17312555]
[1758109273520,0.03,234.53,234.52,50.86312555]
[1758109273895,0.03,234.53,234.52,50.11812647]
[1758109276430,0.03,234.53,234.52,49.42812647]
[1758109279145,0.74,234.53,234.52,15.64738519]
[1758109279310,0.74,234.53,234.52,49.40812647]
[1758109279510,0.03,234.53,234.52,49.40812647]
[1758109279708,0.03,234.53,234.52,47.70065843]
[1758109280131,0.03,234.53,234.52,49.40819936]